{"text_format":"2","workbook":"xlsx","n_sheets":5,"sheets":["Tevékenységek mérföldkővenként","Költségvetés","HR tervező","Beszerzés tervező","Kitöltési útmutató"],"not_rendered":{"charts":0,"images":0,"macros":0,"external_links":0,"defined_names":3,"comments":0,"pivot_tables":0},"unopened":[],"bounds":{"document_bytes":16777216,"sheet_cells":100000,"run_cost":"one","rows_first":2000,"rows_last":500,"rows_between":2000,"halvings":0,"cell_chars":16384,"cell_head_chars":4096},"cells_cut":0,"cells_raw":0,"read":"whole","date_system":"1900"}

{"sheet":"Tevékenységek mérföldkővenként","index":0,"n_rows":18,"n_cols":11,"rows_kept":18,"cut":false,"hidden":false,"merged":[[2,1,2,6],[3,1,3,6],[4,1,4,6],[7,7,7,10],[6,3,6,10],[6,1,6,2],[7,1,7,2],[7,3,7,6]]}
["PoC Pályázat 4. számú melléklet"]
[]
["Projekt címe"]
["Vezető kutató/programvezető"]
["Időszak"]
[]
[null,"Előkészítő szakasz",null,"A projekt rendelkezésre álló megvalósítási időtartama maximum 8 hónap"]
[null,"maximum 3 hónap",null,"1. mérföldkő",null,null,null,"2. mérföldkő"]
["A mérföldkőhöz kapcsolódó tevékenységek (szabadon beírható/átírható)","1. hónap","2. hónap","1. hónap","2. hónap","3. hónap","4. hónap","5. hónap","6. hónap","7. hónap","8. hónap"]
["tev-1"]
["tev-2"]
["tev-3"]
["tev-4"]
["tev-5"]
["tev-6"]
["tev-7"]
["tev-8"]
["tev-9"]

{"sheet":"Költségvetés","index":1,"n_rows":31,"n_cols":4,"rows_kept":31,"cut":false,"hidden":false,"merged":[[0,0,0,3]]}
["Költségvetés"]
["Jogcím","1. mérföldkő","2. mérföldkő","Összesen"]
["Munkabérek (munkaszerződés, további jogviszony, hallgatói jogviszony, eseti/rendszeres bérkiegészítés, ösztöndíj)",{"$f":"SUMIFS('HR tervező'!$O$31:$O$57,'HR tervező'!$S$31:$S$57,Költségvetés!$A$3,'HR tervező'!$H$31:$H$57,Költségvetés!$B$2)","v":0},{"$f":"SUMIFS('HR tervező'!$O$31:$O$57,'HR tervező'!$S$31:$S$57,Költségvetés!$A$3,'HR tervező'!$H$31:$H$57,Költségvetés!$C$2)","v":0},{"$f":"SUM(B3:C3)","v":0}]
["Munkavégzésre irányuló egyéb jogviszonyban (megbízási jogviszony)",{"$f":"SUMIFS('HR tervező'!$O$31:$O$57,'HR tervező'!$G$31:$G$57,\"megbízási szerződés\",'HR tervező'!$H$31:$H$57,Költségvetés!$B$2)","v":0},{"$f":"SUMIFS('HR tervező'!$O$31:$O$57,'HR tervező'!$G$31:$G$57,\"megbízási szerződés\",'HR tervező'!$H$31:$H$57,Költségvetés!C$2)","v":0},{"$f":"SUM(B4:C4)","v":0}]
["Belföldi kiküldetések",{"$f":"+SUMIF('HR tervező'!$C$63:$E$70,B$2,'HR tervező'!$D$63:$D$70)","v":0},{"$f":"+SUMIF('HR tervező'!$C$63:$E$70,C$2,'HR tervező'!$D$63:$D$70)","v":0},{"$f":"SUM(B5:C5)","v":0}]
["Személyi összesen",{"$f":"SUM(B3:B5)","v":0},{"$f":"SUM(C3:C5)","v":0},{"$f":"SUM(D3:D5)","v":0}]
["Munkaadókat terhelő járulékok és SZOCHO (13,0%)",{"$f":"SUMIF('HR tervező'!$H$31:$H$57,Költségvetés!B$2,'HR tervező'!$P$31:$P$57)","v":0},{"$f":"SUMIF('HR tervező'!$H$31:$H$57,Költségvetés!C$2,'HR tervező'!$P$31:$P$57)","v":0},{"$f":"SUM(B7:C7)","v":0}]
["Járulék összesen",{"$f":"SUM(B7)","v":0},0,0]
["Szakmai anyagok beszerzése",{"$f":"SUMIFS('Beszerzés tervező'!$G$41:$G$172,'Beszerzés tervező'!$A$41:$A$172,$A9,'Beszerzés tervező'!$E$41:$E$172,B$2)","v":0},{"$f":"SUMIFS('Beszerzés tervező'!$G$41:$G$172,'Beszerzés tervező'!$A$41:$A$172,$A9,'Beszerzés tervező'!$E$41:$E$172,C$2)","v":0},{"$f":"SUM(B9:C9)","v":0}]
["Üzemeltetési anyagok beszerzése",{"$f":"SUMIFS('Beszerzés tervező'!$G$41:$G$172,'Beszerzés tervező'!$A$41:$A$172,$A10,'Beszerzés tervező'!$E$41:$E$172,B$2)","v":0},{"$f":"SUMIFS('Beszerzés tervező'!$G$41:$G$172,'Beszerzés tervező'!$A$41:$A$172,$A10,'Beszerzés tervező'!$E$41:$E$172,C$2)","v":0},0]
["Árubeszerzés",{"$f":"SUMIFS('Beszerzés tervező'!$G$41:$G$172,'Beszerzés tervező'!$A$41:$A$172,$A11,'Beszerzés tervező'!$E$41:$E$172,B$2)","v":0},{"$f":"SUMIFS('Beszerzés tervező'!$G$41:$G$172,'Beszerzés tervező'!$A$41:$A$172,$A11,'Beszerzés tervező'!$E$41:$E$172,C$2)","v":0},0]
["Informatikai szolgáltatások igénybevétele",{"$f":"SUMIFS('Beszerzés tervező'!$G$41:$G$172,'Beszerzés tervező'!$A$41:$A$172,$A12,'Beszerzés tervező'!$E$41:$E$172,B$2)","v":0},{"$f":"SUMIFS('Beszerzés tervező'!$G$41:$G$172,'Beszerzés tervező'!$A$41:$A$172,$A12,'Beszerzés tervező'!$E$41:$E$172,C$2)","v":0},0]
["Egyéb kommunikációs szolgáltatások",{"$f":"SUMIFS('Beszerzés tervező'!$G$41:$G$172,'Beszerzés tervező'!$A$41:$A$172,$A13,'Beszerzés tervező'!$E$41:$E$172,B$2)","v":0},{"$f":"SUMIFS('Beszerzés tervező'!$G$41:$G$172,'Beszerzés tervező'!$A$41:$A$172,$A13,'Beszerzés tervező'!$E$41:$E$172,C$2)","v":0},0]
["Közüzemi díjak",{"$f":"SUMIFS('Beszerzés tervező'!$G$41:$G$172,'Beszerzés tervező'!$A$41:$A$172,$A14,'Beszerzés tervező'!$E$41:$E$172,B$2)","v":0},{"$f":"SUMIFS('Beszerzés tervező'!$G$41:$G$172,'Beszerzés tervező'!$A$41:$A$172,$A14,'Beszerzés tervező'!$E$41:$E$172,C$2)","v":0},0]
["Vásárolt élelmezés",{"$f":"SUMIFS('Beszerzés tervező'!$G$41:$G$172,'Beszerzés tervező'!$A$41:$A$172,$A15,'Beszerzés tervező'!$E$41:$E$172,B$2)","v":0},{"$f":"SUMIFS('Beszerzés tervező'!$G$41:$G$172,'Beszerzés tervező'!$A$41:$A$172,$A15,'Beszerzés tervező'!$E$41:$E$172,C$2)","v":0},0]
["Bérleti és lízing díjak",{"$f":"SUMIFS('Beszerzés tervező'!$G$41:$G$172,'Beszerzés tervező'!$A$41:$A$172,$A16,'Beszerzés tervező'!$E$41:$E$172,B$2)","v":0},{"$f":"SUMIFS('Beszerzés tervező'!$G$41:$G$172,'Beszerzés tervező'!$A$41:$A$172,$A16,'Beszerzés tervező'!$E$41:$E$172,C$2)","v":0},0]
["Karbantartási, kisjavítási szolgáltatások",{"$f":"SUMIFS('Beszerzés tervező'!$G$41:$G$172,'Beszerzés tervező'!$A$41:$A$172,$A17,'Beszerzés tervező'!$E$41:$E$172,B$2)","v":0},{"$f":"SUMIFS('Beszerzés tervező'!$G$41:$G$172,'Beszerzés tervező'!$A$41:$A$172,$A17,'Beszerzés tervező'!$E$41:$E$172,C$2)","v":0},0]
["Közvetített szolgáltatások",{"$f":"SUMIFS('Beszerzés tervező'!$G$41:$G$172,'Beszerzés tervező'!$A$41:$A$172,$A18,'Beszerzés tervező'!$E$41:$E$172,B$2)","v":0},{"$f":"SUMIFS('Beszerzés tervező'!$G$41:$G$172,'Beszerzés tervező'!$A$41:$A$172,$A18,'Beszerzés tervező'!$E$41:$E$172,C$2)","v":0},0]
["Szakmai tevékenységet segítő szolgáltatások",{"$f":"SUMIFS('Beszerzés tervező'!$G$41:$G$172,'Beszerzés tervező'!$A$41:$A$172,$A19,'Beszerzés tervező'!$E$41:$E$172,B$2)","v":0},{"$f":"SUMIFS('Beszerzés tervező'!$G$41:$G$172,'Beszerzés tervező'!$A$41:$A$172,$A19,'Beszerzés tervező'!$E$41:$E$172,C$2)","v":0},0]
["Egyéb szolgáltatások",{"$f":"SUMIFS('Beszerzés tervező'!$G$41:$G$172,'Beszerzés tervező'!$A$41:$A$172,$A20,'Beszerzés tervező'!$E$41:$E$172,B$2)","v":0},{"$f":"SUMIFS('Beszerzés tervező'!$G$41:$G$172,'Beszerzés tervező'!$A$41:$A$172,$A20,'Beszerzés tervező'!$E$41:$E$172,C$2)","v":0},0]
["Kiküldetések kiadásai",{"$f":"SUMIFS('Beszerzés tervező'!$G$41:$G$172,'Beszerzés tervező'!$A$41:$A$172,$A21,'Beszerzés tervező'!$E$41:$E$172,B$2)","v":0},{"$f":"SUMIFS('Beszerzés tervező'!$G$41:$G$172,'Beszerzés tervező'!$A$41:$A$172,$A21,'Beszerzés tervező'!$E$41:$E$172,C$2)","v":0},0]
["Reklám- és propagandakiadások",{"$f":"SUMIFS('Beszerzés tervező'!$G$41:$G$172,'Beszerzés tervező'!$A$41:$A$172,$A22,'Beszerzés tervező'!$E$41:$E$172,B$2)","v":0},{"$f":"SUMIFS('Beszerzés tervező'!$G$41:$G$172,'Beszerzés tervező'!$A$41:$A$172,$A22,'Beszerzés tervező'!$E$41:$E$172,C$2)","v":0},0]
["Egyéb pénzügyi műveletek kiadásai",{"$f":"SUMIFS('Beszerzés tervező'!$G$41:$G$172,'Beszerzés tervező'!$A$41:$A$172,$A23,'Beszerzés tervező'!$E$41:$E$172,B$2)","v":0},{"$f":"SUMIFS('Beszerzés tervező'!$G$41:$G$172,'Beszerzés tervező'!$A$41:$A$172,$A23,'Beszerzés tervező'!$E$41:$E$172,C$2)","v":0},0]
["Egyéb dologi kiadások",{"$f":"SUMIFS('Beszerzés tervező'!$G$41:$G$172,'Beszerzés tervező'!$A$41:$A$172,$A24,'Beszerzés tervező'!$E$41:$E$172,B$2)","v":0},{"$f":"SUMIFS('Beszerzés tervező'!$G$41:$G$172,'Beszerzés tervező'!$A$41:$A$172,$A24,'Beszerzés tervező'!$E$41:$E$172,C$2)","v":0},0]
["Működési és üzemeltetési kiadások",{"$f":"SUM(B9:B24)","v":0},0,0]
["Immateriális javak beszerzése, létesítése",{"$f":"SUMIFS('Beszerzés tervező'!$G$41:$G$172,'Beszerzés tervező'!$A$41:$A$172,$A26,'Beszerzés tervező'!$E$41:$E$172,B$2)","v":0},{"$f":"SUMIFS('Beszerzés tervező'!$G$41:$G$172,'Beszerzés tervező'!$A$41:$A$172,$A26,'Beszerzés tervező'!$E$41:$E$172,C$2)","v":0},{"$f":"SUM(B26:C26)","v":0}]
["Ingatlanok beszerzése, létesítése",{"$f":"SUMIFS('Beszerzés tervező'!$G$41:$G$172,'Beszerzés tervező'!$A$41:$A$172,$A27,'Beszerzés tervező'!$E$41:$E$172,B$2)","v":0},{"$f":"SUMIFS('Beszerzés tervező'!$G$41:$G$172,'Beszerzés tervező'!$A$41:$A$172,$A27,'Beszerzés tervező'!$E$41:$E$172,C$2)","v":0},{"$f":"SUM(B27:C27)","v":0}]
["Informatikai eszközök beszerzése, létesítése",{"$f":"SUMIFS('Beszerzés tervező'!$G$41:$G$172,'Beszerzés tervező'!$A$41:$A$172,$A28,'Beszerzés tervező'!$E$41:$E$172,B$2)","v":0},{"$f":"SUMIFS('Beszerzés tervező'!$G$41:$G$172,'Beszerzés tervező'!$A$41:$A$172,$A28,'Beszerzés tervező'!$E$41:$E$172,C$2)","v":0},{"$f":"SUM(B28:C28)","v":0}]
["Egyéb tárgyi eszközök beszerzése, létesítése",{"$f":"SUMIFS('Beszerzés tervező'!$G$41:$G$172,'Beszerzés tervező'!$A$41:$A$172,$A29,'Beszerzés tervező'!$E$41:$E$172,B$2)","v":0},{"$f":"SUMIFS('Beszerzés tervező'!$G$41:$G$172,'Beszerzés tervező'!$A$41:$A$172,$A29,'Beszerzés tervező'!$E$41:$E$172,C$2)","v":0},{"$f":"SUM(B29:C29)","v":0}]
["Beruházás összesen",{"$f":"SUM(B26:B29)","v":0},0,{"$f":"SUM(D26:D29)","v":0}]
["Összesen",{"$f":"B6+B8+B25+B30","v":0},{"$f":"C6+C8+C25+C30","v":0},{"$f":"D6+D8+D25+D30","v":0}]

{"sheet":"HR tervező","index":2,"n_rows":74,"n_cols":19,"rows_kept":74,"cut":false,"hidden":false,"merged":[[28,0,28,17],[60,0,60,5],[70,0,70,2]]}
["ÁJTK",{"$nulls":5},"munkaszerződés"]
["SZAOK",{"$nulls":5},"további jogviszony",null,null,"1. mérföldkő"]
["BTK",{"$nulls":5},"bérkiegészítés (eseti)",null," ","2. mérföldkő"]
["ETSZK",{"$nulls":5},"bérkiegészítés (rendszeres)"]
["FOK",{"$nulls":5},"hallgatói munkaszerződés"]
["GTK",{"$nulls":5},"megbízási szerződés"]
["GYTK",{"$nulls":5},"ösztöndíj"]
["JGYPK ",{"$nulls":5},"(EÜ) illetmény-kiegészítés (eseti)"]
["MGK",{"$nulls":5},"(EÜ) illetmény-kiegészítés (rendszeres)"]
["MK"]
["TTIK"]
["BBMK"]
["EÉTK"]
["Karrier Iroda"]
["Klebelsberg Könyvtár"]
["Oktatási Igazgatóság"]
["Nemzetközi és Közkapcsolati Igazgatóság"]
["ISZI"]
["JIHF"]
["Alma Mater"]
["Sportközpont"]
["TKK"]
["FKK"]
["IKI"]
["SFF"]
[]
[]
[]
["HR terv"]
["KAR/egység rövidített neve, ahol a munkavállaló foglalkoztatva van\n(legördülő lista alapján)","Név","Adóazonosító jel","Foglalkoztatás szerinti \nmunkakör","Projektben betöltött pozíció ","végzettség megnevezése\n(amely az adott feladat ellátásához szükséges)","Szerződés típusa \n(legördülő lista alapján)","Mérföldkő száma\n(legördülő lista alapján)","Szerződéskezdete\néééé.hh.nn","Szerződésvége\néééé.hh.nn","Feladattal eltöltött \nheti óraszám "," Havi bruttó bér (Ft/hó)\n(SZOCHO nélkül)","A mérföldkőhöz kapcsolódó tevékenységek (megegyezik a szakmai összefoglaló fülön feltüntetett tevékenység megnevezéssel)\n(legördülő lista alapján)","hónap","A szerződéssel lekötött keret (br.bér * hónapok)","A szerződéssel lekötött keret (SZOCHO * hónapok)","A szerződéssel lekötött keret (br.bér+járulék) * hónapok)","FTE"]
[{"$nulls":13},{"$f":"IF(OR(G31=$G$3,G31=$G$6,G31=$G$8),1,(YEAR(J31)-YEAR(I31))*12+(MONTH(J31)-MONTH(I31)+1))","v":1},{"$f":"L31*N31","v":0},{"$f":"IF(G31=$G$7,L31*0*N31,IF(G31=$G$6,L31*0.9*0.13*N31,L31*0.13*N31))","v":0},{"$f":"O31+P31","v":0},{"$f":"ROUND(K31/40,2)","v":0},{"$f":"IF($G$31:$G$57=$G$6,Költségvetés!$A$4,Költségvetés!$A$3)","v":"Munkabérek (munkaszerződés, további jogviszony, hallgatói jogviszony, eseti/rendszeres bérkiegészítés, ösztöndíj)"}]
[{"$nulls":13},{"$f":"IF(OR(G32=$G$3,G32=$G$6,G32=$G$8),1,(YEAR(J32)-YEAR(I32))*12+(MONTH(J32)-MONTH(I32)+1))","v":1},0,{"$f":"IF(G32=$G$7,L32*0*N32,IF(G32=$G$6,L32*0.9*0.13*N32,L32*0.13*N32))","v":0},0,0,{"$f":"IF($G$31:$G$57=$G$6,Költségvetés!$A$4,Költségvetés!$A$3)","v":"Munkabérek (munkaszerződés, további jogviszony, hallgatói jogviszony, eseti/rendszeres bérkiegészítés, ösztöndíj)"}]
[{"$nulls":13},1,0,0,{"$f":"O33+P33","v":0},0,{"$f":"IF($G$31:$G$57=$G$6,Költségvetés!$A$4,Költségvetés!$A$3)","v":"Munkabérek (munkaszerződés, további jogviszony, hallgatói jogviszony, eseti/rendszeres bérkiegészítés, ösztöndíj)"}]
[{"$nulls":13},1,0,0,0,0,{"$f":"IF($G$31:$G$57=$G$6,Költségvetés!$A$4,Költségvetés!$A$3)","v":"Munkabérek (munkaszerződés, további jogviszony, hallgatói jogviszony, eseti/rendszeres bérkiegészítés, ösztöndíj)"}]
[{"$nulls":13},1,0,0,0,0,{"$f":"IF($G$31:$G$57=$G$6,Költségvetés!$A$4,Költségvetés!$A$3)","v":"Munkabérek (munkaszerződés, további jogviszony, hallgatói jogviszony, eseti/rendszeres bérkiegészítés, ösztöndíj)"}]
[{"$nulls":13},1,0,0,0,0,{"$f":"IF($G$31:$G$57=$G$6,Költségvetés!$A$4,Költségvetés!$A$3)","v":"Munkabérek (munkaszerződés, további jogviszony, hallgatói jogviszony, eseti/rendszeres bérkiegészítés, ösztöndíj)"}]
[{"$nulls":13},1,{"$f":"L37*N37","v":0},0,0,0,{"$f":"IF($G$31:$G$57=$G$6,Költségvetés!$A$4,Költségvetés!$A$3)","v":"Munkabérek (munkaszerződés, további jogviszony, hallgatói jogviszony, eseti/rendszeres bérkiegészítés, ösztöndíj)"}]
[{"$nulls":13},1,{"$f":"L38*N38","v":0},0,0,0,{"$f":"IF($G$31:$G$57=$G$6,Költségvetés!$A$4,Költségvetés!$A$3)","v":"Munkabérek (munkaszerződés, további jogviszony, hallgatói jogviszony, eseti/rendszeres bérkiegészítés, ösztöndíj)"}]
[{"$nulls":13},1,0,0,0,0,{"$f":"IF($G$31:$G$57=$G$6,Költségvetés!$A$4,Költségvetés!$A$3)","v":"Munkabérek (munkaszerződés, további jogviszony, hallgatói jogviszony, eseti/rendszeres bérkiegészítés, ösztöndíj)"}]
[{"$nulls":13},1,0,0,0,0,{"$f":"IF($G$31:$G$57=$G$6,Költségvetés!$A$4,Költségvetés!$A$3)","v":"Munkabérek (munkaszerződés, további jogviszony, hallgatói jogviszony, eseti/rendszeres bérkiegészítés, ösztöndíj)"}]
[{"$nulls":13},1,0,0,0,0,{"$f":"IF($G$31:$G$57=$G$6,Költségvetés!$A$4,Költségvetés!$A$3)","v":"Munkabérek (munkaszerződés, további jogviszony, hallgatói jogviszony, eseti/rendszeres bérkiegészítés, ösztöndíj)"}]
[{"$nulls":13},1,0,0,0,0,{"$f":"IF($G$31:$G$57=$G$6,Költségvetés!$A$4,Költségvetés!$A$3)","v":"Munkabérek (munkaszerződés, további jogviszony, hallgatói jogviszony, eseti/rendszeres bérkiegészítés, ösztöndíj)"}]
[{"$nulls":13},1,{"$f":"L43*N43","v":0},0,0,0,{"$f":"IF($G$31:$G$57=$G$6,Költségvetés!$A$4,Költségvetés!$A$3)","v":"Munkabérek (munkaszerződés, további jogviszony, hallgatói jogviszony, eseti/rendszeres bérkiegészítés, ösztöndíj)"}]
[{"$nulls":13},1,0,0,0,0,{"$f":"IF($G$31:$G$57=$G$6,Költségvetés!$A$4,Költségvetés!$A$3)","v":"Munkabérek (munkaszerződés, további jogviszony, hallgatói jogviszony, eseti/rendszeres bérkiegészítés, ösztöndíj)"}]
[{"$nulls":13},1,0,0,0,0,{"$f":"IF($G$31:$G$57=$G$6,Költségvetés!$A$4,Költségvetés!$A$3)","v":"Munkabérek (munkaszerződés, további jogviszony, hallgatói jogviszony, eseti/rendszeres bérkiegészítés, ösztöndíj)"}]
[{"$nulls":13},1,0,0,0,0,{"$f":"IF($G$31:$G$57=$G$6,Költségvetés!$A$4,Költségvetés!$A$3)","v":"Munkabérek (munkaszerződés, további jogviszony, hallgatói jogviszony, eseti/rendszeres bérkiegészítés, ösztöndíj)"}]
[{"$nulls":13},1,0,0,0,0,{"$f":"IF($G$31:$G$57=$G$6,Költségvetés!$A$4,Költségvetés!$A$3)","v":"Munkabérek (munkaszerződés, további jogviszony, hallgatói jogviszony, eseti/rendszeres bérkiegészítés, ösztöndíj)"}]
[{"$nulls":13},1,0,0,0,0,{"$f":"IF($G$31:$G$57=$G$6,Költségvetés!$A$4,Költségvetés!$A$3)","v":"Munkabérek (munkaszerződés, további jogviszony, hallgatói jogviszony, eseti/rendszeres bérkiegészítés, ösztöndíj)"}]
[{"$nulls":13},1,{"$f":"L49*N49","v":0},0,0,0,{"$f":"IF($G$31:$G$57=$G$6,Költségvetés!$A$4,Költségvetés!$A$3)","v":"Munkabérek (munkaszerződés, további jogviszony, hallgatói jogviszony, eseti/rendszeres bérkiegészítés, ösztöndíj)"}]
[{"$nulls":13},1,0,0,0,0,{"$f":"IF($G$31:$G$57=$G$6,Költségvetés!$A$4,Költségvetés!$A$3)","v":"Munkabérek (munkaszerződés, további jogviszony, hallgatói jogviszony, eseti/rendszeres bérkiegészítés, ösztöndíj)"}]
[{"$nulls":13},1,0,0,0,0,{"$f":"IF($G$31:$G$57=$G$6,Költségvetés!$A$4,Költségvetés!$A$3)","v":"Munkabérek (munkaszerződés, további jogviszony, hallgatói jogviszony, eseti/rendszeres bérkiegészítés, ösztöndíj)"}]
[{"$nulls":13},1,0,0,0,0,{"$f":"IF($G$31:$G$57=$G$6,Költségvetés!$A$4,Költségvetés!$A$3)","v":"Munkabérek (munkaszerződés, további jogviszony, hallgatói jogviszony, eseti/rendszeres bérkiegészítés, ösztöndíj)"}]
[{"$nulls":13},1,0,0,0,0,{"$f":"IF($G$31:$G$57=$G$6,Költségvetés!$A$4,Költségvetés!$A$3)","v":"Munkabérek (munkaszerződés, további jogviszony, hallgatói jogviszony, eseti/rendszeres bérkiegészítés, ösztöndíj)"}]
[{"$nulls":13},1,0,0,0,0,{"$f":"IF($G$31:$G$57=$G$6,Költségvetés!$A$4,Költségvetés!$A$3)","v":"Munkabérek (munkaszerződés, további jogviszony, hallgatói jogviszony, eseti/rendszeres bérkiegészítés, ösztöndíj)"}]
[{"$nulls":13},1,0,0,0,0,{"$f":"IF($G$31:$G$57=$G$6,Költségvetés!$A$4,Költségvetés!$A$3)","v":"Munkabérek (munkaszerződés, további jogviszony, hallgatói jogviszony, eseti/rendszeres bérkiegészítés, ösztöndíj)"}]
[{"$nulls":13},1,0,0,0,0,{"$f":"IF($G$31:$G$57=$G$6,Költségvetés!$A$4,Költségvetés!$A$3)","v":"Munkabérek (munkaszerződés, további jogviszony, hallgatói jogviszony, eseti/rendszeres bérkiegészítés, ösztöndíj)"}]
[{"$nulls":13},1,0,0,0,0,{"$f":"IF($G$31:$G$57=$G$6,Költségvetés!$A$4,Költségvetés!$A$3)","v":"Munkabérek (munkaszerződés, további jogviszony, hallgatói jogviszony, eseti/rendszeres bérkiegészítés, ösztöndíj)"}]
[{"$nulls":13},"Mindösszesen",{"$f":"SUM(O31:O57)","v":0},{"$f":"SUM(P31:P57)","v":0},0]
[]
[]
["Belföldi kiküldetések"]
["Név/Úti cél","költség típusa\n(legördülő lista alapján)","Mérföldkő száma\n(legördülő lista alapján)","Bruttó összeg\n(ktg/út)","A mérföldkőhöz kapcsolódó tevékenységek (megegyezik a szakmai összefoglaló fülön feltüntetett tevékenység megnevezéssel)\n(legördülő lista alapján)"]
{"$rows_empty":7}
[{"$nulls":9}," "]
["Összesen:",null,null,{"$f":"SUM(D63:D70)","v":0}]
[]
[]
[{"$nulls":10},"   "]

{"sheet":"Beszerzés tervező","index":3,"n_rows":176,"n_cols":16,"rows_kept":176,"cut":false,"hidden":false,"merged":[[149,1,149,6],[150,1,150,6],[101,0,101,6],[36,0,36,6],[37,0,37,6],[39,0,39,6],[100,0,100,4],[143,1,143,6],[144,1,144,6],[145,1,145,6],[146,1,146,6],[147,1,147,6],[124,0,124,4],[151,1,151,6],[133,1,133,6],[142,1,142,6],[175,1,175,6],[152,1,152,6],[153,1,153,6],[154,1,154,6],[155,1,155,6],[157,1,157,2],[158,1,158,6],[159,1,159,6],[160,1,160,6],[161,1,161,6],[162,1,162,6],[163,1,163,6],[148,1,148,6]]}
[null,"Árubeszerzés","Egyéb gépek, berendezések  ","Egyéb tárgyi eszközök beszerzése, létesítése"]
[null,"Árubeszerzés","Egyéb gép-, műszer alkatrészek, tarozékok  ","Egyéb tárgyi eszközök beszerzése, létesítése"]
[null,"Árubeszerzés","IT eszközök (PC, notebook, monitor, projektor, interaktív tábla, szoftver…stb)","Informatikai eszközök beszerzése, létesítése","Informatikai gép. berendezés, felszerelés folyamatban lévő beruházása"]
[null,"Árubeszerzés","Kísérleti állatok","Szakmai anyagok beszerzése"]
[null,"Árubeszerzés","Laboratóriumi műszer alkatrészek, tartozékok  ","Egyéb tárgyi eszközök beszerzése, létesítése","Egyéb gép, berendezés és felszerelés beszerzés, létesítés"]
[null,"Árubeszerzés","Laboratóriumi műszerek, berendezések  ","Egyéb tárgyi eszközök beszerzése, létesítése","Egyéb gép, berendezés és felszerelés beszerzés, létesítés"]
[null,"Árubeszerzés","Oktatási műszerek, gépek, berendezések  ","Egyéb tárgyi eszközök beszerzése, létesítése","Egyéb gép, berendezés és felszerelés beszerzés, létesítés"]
[null,"Árubeszerzés","Orvosi műszerek, gépek berendezések  ","Egyéb tárgyi eszközök beszerzése, létesítése","Egyéb gép, berendezés és felszerelés beszerzés, létesítés"]
[null,"Árubeszerzés","Palackos gázok, gázkeverékek","Szakmai anyagok beszerzése","szakmai anyagbeszerzés (oktatás, kutatásfejlesztés)"]
[null,"Árubeszerzés","Vegyszerek, reagensek, fogyóanyagok és laboratóriumi fogyóeszközök","Szakmai anyagok beszerzése"]
[null,"Szolgáltatás megrendelés","Arculattervezés  ","Reklám- és propagandakiadások","Reklám- és propagandakiadások"]
[null,"Szolgáltatás megrendelés","Belföldi szállás, utazás","Kiküldetések kiadásai","belföldi kiküldetés kiadásai / egyéb dologi kiadás"]
[null,"Szolgáltatás megrendelés","Egyéb javítás, karbantartás  ","Karbantartási, kisjavítási szolgáltatások"]
[null,"Szolgáltatás megrendelés","Egyéb tanácsadói, szakértői, közreműködői szolgáltatás  ","Szakmai tevékenységet segítő szolgáltatások"]
[null,"Szolgáltatás megrendelés","Fordítás, tolmácsolás, lektorálás  ","Egyéb szolgáltatások"]
[null,"Szolgáltatás megrendelés","Fotózás  ","Egyéb szolgáltatások"]
[null,"Szolgáltatás megrendelés","Futár szolgáltatás","Egyéb szolgáltatások"]
[null,"Szolgáltatás megrendelés","Hirdetés, reklámfelület vásárlás","Egyéb kommunikációs szolgáltatások"]
[null,"Szolgáltatás megrendelés","Honlap készítés, fejlesztés","Egyéb kommunikációs szolgáltatások"]
[null,"Szolgáltatás megrendelés","IT-szolgáltatások","Informatikai szolgáltatások igénybevétele"]
[null,"Szolgáltatás megrendelés","Konferencia részvétel, regisztráció díja","Egyéb szolgáltatások"]
[null,"Szolgáltatás megrendelés","nyomdai szolgáltatás","Egyéb szolgáltatások"]
[null,"Szolgáltatás megrendelés","Kutatás és fejlesztés  ","Szakmai tevékenységet segítő szolgáltatások"]
[null,"Szolgáltatás megrendelés","Laboratóriumi vizsgálatok","Szakmai tevékenységet segítő szolgáltatások"]
[null,"Szolgáltatás megrendelés","Minőségbiztosítás, minőségirányítás  ","Egyéb szolgáltatások"]
[null,"Szolgáltatás megrendelés","Művészeti, előadói tevékenység","Egyéb szolgáltatások"]
[null,"Szolgáltatás megrendelés","Oktatás, képzés, tanfolyam (nem informatikai)  ","Egyéb szolgáltatások"]
[null,"Szolgáltatás megrendelés","Szabadalmi szolgáltatás, újdonságkutatás","Egyéb szolgáltatások"]
[null,"Szolgáltatás megrendelés","Szekvenálás  ","Szakmai tevékenységet segítő szolgáltatások"]
[null,"Szolgáltatás megrendelés","Minőségbiztosítás, minőségirányítás  ","Egyéb szolgáltatások"]
[null,"Szolgáltatás megrendelés","Tagdíj, nevezési díj","Egyéb dologi kiadások"]
[null,"Szolgáltatás megrendelés","Orvosi eszköz/mérőműszer bérlés ","Bérleti és lízing díjak"]
[null,"Szolgáltatás megrendelés","Terembérlés  ","Bérleti és lízing díjak"]
[null,"Szolgáltatás megrendelés","Tervezési szolgáltatás","Egyéb szolgáltatások"]
[null,"Szolgáltatás megrendelés","Tudományos cikk, publikáció megjelentetése","Szakmai tevékenységet segítő szolgáltatások"]
[]
["Beszerzési terv"]
["Projektköltségvetés alapján tervezett beszerzések \n(2024.év)"]
["Költségvetési jogcím\n (el lesz rejtve)","Beszerzés kategóriák\n(legördülő lista alapján)","Beszerzés tárgya","A mérföldkőhöz kapcsolódó tevékenységek (megegyezik a szakmai összefoglaló fülön feltüntetett tevékenység megnevezéssel)\n(legördülő lista alapján)","mérföldkő száma (legördülő lista alapján)","Nettó becsült érték\n(Ft) ","Bruttó becsült érték\n(Ft) \n27%-kal számol!"]
["Árubeszerzés "]
[{"$f":"VLOOKUP(B41,$C$1:$D$35,2,0)","v":{"$error":"#N/A"}},{"$nulls":5},{"$f":"+F41*1.27","v":0}]
[{"$error":"#N/A"},{"$nulls":5},{"$f":"+F42*1.27","v":0}]
[{"$error":"#N/A"},{"$nulls":5},0]
[{"$error":"#N/A"},{"$nulls":5},0]
[{"$error":"#N/A"},{"$nulls":5},0]
[{"$error":"#N/A"},{"$nulls":5},0]
[{"$error":"#N/A"},{"$nulls":5},0]
[{"$error":"#N/A"},{"$nulls":5},0]
[{"$error":"#N/A"},{"$nulls":5},0]
[{"$error":"#N/A"},{"$nulls":5},0]
[{"$error":"#N/A"},{"$nulls":5},0]
[{"$error":"#N/A"},{"$nulls":5},0]
[{"$error":"#N/A"},{"$nulls":5},0]
[{"$error":"#N/A"},{"$nulls":5},0]
[{"$error":"#N/A"},{"$nulls":5},0]
[{"$error":"#N/A"},{"$nulls":5},0]
[{"$error":"#N/A"},{"$nulls":5},0]
[{"$error":"#N/A"},{"$nulls":5},0]
[{"$error":"#N/A"},{"$nulls":5},0]
[{"$error":"#N/A"},{"$nulls":5},0]
[{"$error":"#N/A"},{"$nulls":5},0]
[{"$error":"#N/A"},{"$nulls":5},0]
[{"$error":"#N/A"},{"$nulls":5},0]
[{"$error":"#N/A"},{"$nulls":5},0]
[{"$error":"#N/A"},{"$nulls":5},0]
[{"$error":"#N/A"},{"$nulls":5},0]
[{"$error":"#N/A"},{"$nulls":5},0]
[{"$error":"#N/A"},{"$nulls":5},0]
[{"$error":"#N/A"},{"$nulls":5},0]
[{"$error":"#N/A"},{"$nulls":5},0]
[{"$error":"#N/A"},{"$nulls":5},0]
[{"$error":"#N/A"},{"$nulls":5},0]
[{"$f":"VLOOKUP(B73,$C$1:$D$35,2,0)","v":{"$error":"#N/A"}},{"$nulls":5},0]
[{"$error":"#N/A"},{"$nulls":5},0]
[{"$error":"#N/A"},{"$nulls":5},0,{"$nulls":5},"Szolgáltatás megrendelés","Oktatás, képzés, tanfolyam (nem informatikai)  ","Egyéb szolgáltatások"]
[{"$error":"#N/A"},{"$nulls":5},0,{"$nulls":5},"Szolgáltatás megrendelés","Rendezvényszervezés  ","Egyéb szolgáltatások"]
[{"$error":"#N/A"},{"$nulls":5},0]
[{"$error":"#N/A"},{"$nulls":5},0]
[{"$error":"#N/A"},{"$nulls":5},0]
[{"$error":"#N/A"},{"$nulls":5},0]
[{"$error":"#N/A"},{"$nulls":5},0]
[{"$error":"#N/A"},{"$nulls":5},0]
[{"$error":"#N/A"},{"$nulls":5},0]
[{"$error":"#N/A"},{"$nulls":5},0]
[{"$error":"#N/A"},{"$nulls":5},0]
[{"$error":"#N/A"},{"$nulls":5},0]
[{"$error":"#N/A"},{"$nulls":5},0]
[{"$error":"#N/A"},{"$nulls":5},0]
[{"$error":"#N/A"},{"$nulls":5},0]
[{"$error":"#N/A"},{"$nulls":5},0]
[{"$error":"#N/A"},{"$nulls":5},0]
[{"$error":"#N/A"},{"$nulls":5},0]
[{"$error":"#N/A"},{"$nulls":5},0,{"$nulls":5},"Szolgáltatás megrendelés","Szabadalmi szolgáltatás, újdonságkutatás","Egyéb szolgáltatások"]
[{"$error":"#N/A"},{"$nulls":5},0,{"$nulls":5},"Szolgáltatás megrendelés","Szekvenálás  ","Szakmai tevékenységet segítő szolgáltatások"]
[{"$error":"#N/A"},{"$nulls":5},0,{"$nulls":5},"Szolgáltatás megrendelés","Minőségbiztosítás, minőségirányítás  ","Egyéb szolgáltatások"]
[{"$error":"#N/A"},{"$nulls":5},0,{"$nulls":5},"Szolgáltatás megrendelés","Tagdíj, nevezési díj","Egyéb dologi kiadások"]
[{"$error":"#N/A"},{"$nulls":5},0,{"$nulls":5},"Szolgáltatás megrendelés","Terembérlés  ","Bérleti és lízing díjak"]
[{"$error":"#N/A"},{"$nulls":5},0,{"$nulls":5},"Szolgáltatás megrendelés","Tervezési szolgáltatás","Egyéb szolgáltatások"]
[{"$error":"#N/A"},{"$nulls":5},0,{"$nulls":5},"Szolgáltatás megrendelés","Tudományos cikk, publikáció megjelentetése","Szakmai tevékenységet segítő szolgáltatások","Egyéb szakmai szolgáltatások"]
[{"$error":"#N/A"},{"$nulls":5},0,{"$nulls":5},"Szolgáltatás megrendelés","Közbeszerzési költségek ( FAKSZ költség, eljárási díjak, stb.)","Szakmai tevékenységet segítő szolgáltatások","Egyéb tanácsadás / szolgáltatás"]
["Árubeszerzés összesen:",{"$nulls":4},{"$f":"SUM(F41:F100)","v":0},{"$f":"SUM(G41:G100)","v":0}]
["Szolgáltatás"]
["Költségvetési jogcím\n (el lesz rejtve)","Beszerzés kategóriák\n(legördülő lista alapján)","Beszerzés tárgya","A mérföldkőhöz kapcsolódó tevékenységek (megegyezik a szakmai összefoglaló fülön feltüntetett tevékenység megnevezéssel)\n(legördülő lista alapján)","mérföldkő száma (legördülő lista alapján)","Nettó becsült érték\n(Ft) ","Bruttó becsült érték\n(Ft) \n27%-kal számol!"]
[{"$f":"VLOOKUP(B104,$C$1:$D$35,2,0)","v":{"$error":"#N/A"}},{"$nulls":5},{"$f":"+F104*1.27","v":0}]
[{"$error":"#N/A"},{"$nulls":5},0]
[{"$error":"#N/A"},{"$nulls":5},0]
[{"$error":"#N/A"},{"$nulls":5},0]
[{"$error":"#N/A"},{"$nulls":5},0]
[{"$error":"#N/A"},{"$nulls":5},0]
[{"$error":"#N/A"},{"$nulls":5},0]
[{"$error":"#N/A"},{"$nulls":5},0]
[{"$error":"#N/A"},{"$nulls":5},0]
[{"$error":"#N/A"},{"$nulls":5},0]
[{"$error":"#N/A"},{"$nulls":5},0]
[{"$error":"#N/A"},{"$nulls":5},0]
[{"$error":"#N/A"},{"$nulls":5},0]
[{"$error":"#N/A"},{"$nulls":5},0]
[{"$error":"#N/A"},{"$nulls":5},0]
["Kiküldetések kiadásai","Belföldi szállás, utazás",null,null,null,25000,31750]
[{"$error":"#N/A"},{"$nulls":5},0]
[{"$error":"#N/A"},{"$nulls":5},0]
[{"$error":"#N/A"},{"$nulls":5},0]
[{"$error":"#N/A"},{"$nulls":5},0]
[{"$error":"#N/A"},{"$nulls":5},0]
["Szolgáltatás beszerzés összesen:",{"$nulls":4},{"$f":"SUM(F104:F124)","v":25000},{"$f":"SUM(G104:G124)","v":31750}]
[{"$nulls":5},{"$f":"+F101+F125","v":25000},{"$f":"+G101+G125","v":31750}]
[null,"Kelt: Szeged, 2024. …"]
[]
[{"$nulls":4},".............................................................."]
[]
[{"$nulls":4},"szakmai vezető "]
[]
[]
[null,"Közbeszerzési záradék:\n\nA projekt tevékenységéhez kapcsolódó beszerzési eljárás típusok  - a fenti keretösszegek esetén - , a Közbeszerzési törvényben meghatározott egybeszámítási szabályoknak, valamint a Szegedi Tudományegyetem Közbeszerzési Szabályzatában foglaltaknak megfelelnek."]
[]
[]
[{"$nulls":4},".............................................................."]
[{"$nulls":4},"Dr. Nagy Paulina "]
[{"$nulls":4},"beszerzési igazgató"]
[]
[]
[]
[null,"Kitöltési segédlet"]
[null,"A beszerzés tárgyának meghatározásakor szükséges a minél pontosabb, részletes megnevezés. Külön sorban szükséges feltűntetni azon beszerzések esetén esetén, melyek nem azonosak vagy nem hasonló felhasználásra szánták őket és legalább 6 hónap eltérés van a beszerzés időigénye között. "]
[null,"Felhívom azonban a figyelmet, hogy a Közbeszerzések Tanácsa álláspontja szerint a felhasználási cél az adott áru közvetlen funkciójának szem előtt tartásával ítélhető meg, így az áruk esetében e két vizsgálati szempont nem feltétlenül válik el egymástól, és a hasonló felhasználási cél – amennyiben nem állnak fenn objektív indokok, amelyek egyértelműen e beszerzések funkcionális önállóságát igazolják – kifejezi a funkcionális egységet is."]
[null,"Sorok tetszés szerint beszúrhatóak, amennyiben a projektben betervezett beszerzés egyik beszerzési kategóriába sem illeszthető, a táblázat bővíthető. "]
[null," A „Beszerzési eljárás elindításának tervezett dátuma”, illetve a „Beszerzési eljárás típusa” oszlopok, illetve a beszerzési terv sorszáma a beszerzési referens által, a Beszerzési Igazgatósággal történő egyeztetés alapján kerülnek feltöltésre."]
[null,"A beszerzési tervhez minden esetben szükséges a hatályos költségvetést csatolni. A költségvetés beszerzéseket érintő módosítása esetén a beszerzési terv aktualizálása szükséges."]
[]
[null,"Kapcsolódó fogalomtár"]
[null,"árubeszerzés: Olyan visszterhes szerződés, amelynek tárgya forgalomképes és birtokba vehető ingó dolog tulajdonjogának vagy használatára, illetőleg hasznosítására vonatkozó jognak - vételi joggal vagy anélkül történő - megszerzése az ajánlatkérő részéről. Az árubeszerzés magában foglalja a beállítást és üzembe helyezést is."]
[null,"szolgáltatás: Árubeszerzésnek és építési beruházásnak nem minősülő olyan visszterhes szerződés, amelynek tárgya különösen valamely tevékenység megrendelése az ajánlatkérő részéről."]
[null,"építés: Olyan visszterhes szerződés, amelynek tárgya a következő valamelyik munka megrendelése (és átvétele) az ajánlatkérő részéről:"]
[null,"a) az 1. mellékletben (2015. évi CXLIII. törvény 1. melléklet) felsorolt tevékenységek egyikéhez kapcsolódó munka kivitelezése vagy kivitelezése és külön jogszabályban meghatározott tervezése együtt;"]
[null,"b) építmény kivitelezése vagy kivitelezése és külön jogszabályban meghatározott tervezése együtt;"]
[null,"c) az ajánlatkérő által meghatározott követelményeknek megfelelő építmény bármilyen eszközzel, illetőleg módon történő kivitelezése"]
[]
[null,"2015. évi CXLIII. törvényben megfogalmazott két kivételel: "]
[null,"Kbt. 111. § v) kutatás-fejlesztési vagy innovációs tevékenység végzéséhez közvetlenül kapcsolódó, speciálisan az ilyen tevékenység megvalósítását szolgáló áruk és szolgáltatások beszerzésére"]
[null,"A Kbt. rendelkezését kiegészíti és segít értelmezni a törvényhez kapcsolódó indoklás az alábbiak szerint. ( INDOKOLÁSOK TÁRA 157. szám A MAGYAR KÖZLÖNY M E L L É K L E T E )"]
[null,"111. § v) pontjának módosítása a kutatás-fejlesztési tevékenységhez közvetlenül kapcsolódó, és kifejezetten a kutatás-fejlesztési tevékenység célját szolgáló áruk és szolgáltatások beszerzését mentesíti uniós értékhatárig a közbeszerzési kötelezettség alól. A kivétel célja a kutatás-fejlesztési tevékenység folyamatos végzésének segítése, amely megkönnyíti a kutatás folyamán előre nem látható módon jelentkező beszerzési igények kezelését. A kivétel nem vonatkozik az általános felhasználásra szánt, a kutatás-fejlesztési tevékenységen kívül is az érintett szervezet működéséhez általában szükséges árukra és szolgáltatásokra, mert ezek tekintetében az ajánlatkérőktől elvárható, hogy a felmerülő beszerzési igényekre a Kbt-nek megfelelő megoldásokkal rendelkezzenek. A kivétel alkalmazása során különösen uniós forrás felhasználásakor a részekre bontás tilalmának megtartására érdemes kiemelt figyelmet fordítani."]
[null,"Azok a beszerzések tartozhatnak ebbe a kivételi körbe, melyek kutatás-fejlesztési tevékenységhez közvetlenül kapcsolódó árubeszerzések vagy szolgáltatások és az egybeszámított becsült értéke nem haladja meg a hatályos uniós értékhatárt, mely 2022.01.01-től nettó 75 245 700 forint. "]
[null,"Kbt. 9. § (8). l) a 73000000-2-tól 73120000-9-ig tartó, valamint a 73300000-5, a 73420000-2 és a 73430000-5 CPV kódok által meghatározott kutatási és fejlesztési szolgáltatásra, kivéve, ha annak eredményét kizárólag az ajánlatkérő hasznosítja tevékenysége során, és az ellenszolgáltatást teljes mértékben az ajánlatkérő szerv teljesíti."]
[]
[null,"73000000-2","Kutatási és fejlesztési szolgáltatások és kapcsolódó tanácsadói szolgáltatások","Kutatási és fejlesztési szolgáltatások és kapcsolódó tanácsadói szolgáltatások"]
[null,"73100000-3","Kutatási és kísérleti fejlesztési szolgáltatások","Kutatási és kísérleti fejlesztési szolgáltatások"]
[null,"73110000-6","Kutatási szolgáltatások","Kutatási szolgáltatások"]
[null,"73111000-3","Kutatólaboratóriumi szolgáltatások","Kutatólaboratóriumi szolgáltatások"]
[null,"73112000-0","Tengerkutatási szolgáltatások","Tengerkutatási szolgáltatások"]
[null,"73120000-9","Kísérleti fejlesztési szolgáltatások","Kísérleti fejlesztési szolgáltatások"]
[null,"73300000-5","Kutatás és fejlesztés tervezése és kivitelezése","Kutatás és fejlesztés tervezése és kivitelezése"]
[null,"73420000-2","Előzetes megvalósíthatósági tanulmány és technológiai demonstráció","Előzetes megvalósíthatósági tanulmány és technológiai demonstráció"]
[null,"73430000-5","Tesztelés és értékelés","Tesztelés és értékelés"]
[]
[]
[null,"PraG beszerzések: Az Európai Bizottságnak az előcsatlakozási támogatási eszköz (IPA) létrehozásáról szóló 1085/2006/EK tanácsi rendelet végrehajtásáról szóló 718/2007/EK rendelete (2007. június 12.) (a továbbiakban: Rendelet) értelmében a program keretében a szolgáltatások, áruk és építési beruházások beszerzéseire nem a Kbt.-t, hanem az Európai Közösségek külső segítségnyújtásra vonatkozó szabályait kell alkalmazni. Ennek módszertani útmutatója: \"Practical Guide to contract procedures for EC external actions\" (PraG). [ld.: Kbt. 9. § (1) bekezdésének e) pontja]"]

{"sheet":"Kitöltési útmutató","index":4,"n_rows":8,"n_cols":2,"rows_kept":8,"cut":false,"hidden":false,"merged":[[0,0,0,1],[1,0,1,1]]}
["Pályázat Egyszerűsített pénzügyi terv adatlap"]
["Útmutató kitöltéshez"]
[]
["Munkafül neve","Útmutató"]
["Tevékenységek mérföldkővenként","A mérföldkőhöz kapcsolódó tevékenységek cellákat kérjük manuálisan tölteni.\nMivel a táblázat egy Gantt, így kitöltő \"X\" alkalmazásával kérjük jelölni a pályázat tevékenységeihez tartozó megvalósítás lefutását."]
["Költségvetés","Nem szerkeszthető! \nKöltségvetés munkafül automatikusan töltődik a HR tervező és beszerzési tervező munkafülekre rögzített adatok alapján, ezért kérjük minden cella töltését!"]
["HR tervező","A fehér mezőket kérjük manuálisan tölteni, a szürke mezők töltéséhez kérjük a legördülő menüből válasszon!\nZöld és narancssárga mezők képletezettek és zároltak!"]
["Beszerzés tervező","A fehér mezőket kérjük manuálisan tölteni, a szürke mezők töltéséhez kérjük a legördülő menüből válasszon!\nZöld mezők képletezettek és zároltak!"]